fUST/lending_fUST_20250209
["ID","MTS","AMOUNT","RATE_DAILY","PERIOD"]
[352306154,1739034639068,-500.0,0.00011369,2]
[352306155,1739034639077,-522.5,0.00011369,2]
[352306156,1739034639086,-500.0,0.00011369,2]
[352306157,1739034639095,-500.0,0.00011369,2]
[352306158,1739034639105,-3172.66,0.00011369,2]
[352306159,1739034639113,-837.9,0.00011369,2]
[352306160,1739034639122,-1286.87,0.00011369,2]
[352306161,1739034639132,-1418.94,0.00011369,2]
[352306162,1739034639141,-3358.18,0.00011369,2]
[352306163,1739034639151,-2203.65,0.00011369,2]
[352306164,1739034639160,-500.0,0.00011369,2]
[352306165,1739034639170,-773.52,0.00011369,2]
[352306166,1739034639179,-4370.11,0.00011369,2]
[352306167,1739034639188,-13047.28,0.00011369,2]
[352306168,1739034639199,-623.05192988,0.00011376,2]
[352306169,1739034639210,-151.0,0.000114,2]
[352306170,1739034639219,-153.0,0.000114,2]
[352306171,1739034639228,-153.0,0.00011425,2]
[352306172,1739034639238,-154.411,0.0001145,2]
[352306173,1739034639247,-151.0,0.000115,2]
[352306174,1739034639257,-235.0594965,0.000115,2]
[352306175,1739034639266,-708.7722235,0.000115,2]
[352306176,1739034639275,-151.0,0.000115,2]
[352306177,1739034639285,-151.0,0.000115,2]
[352306178,1739034639294,-500.0,0.00011505,2]
[352306179,1739034639303,-617.84785582,0.00011505,2]
[352306180,1739034639312,-500.0,0.00011506,2]
[352306181,1739034639321,-557.64,0.00011506,2]
[352306182,1739034639331,-500.0,0.00011506,2]
[352306183,1739034639340,-500.0,0.00011506,2]
[352306184,1739034639349,-500.0,0.00011506,2]
[352306185,1739034639358,-500.0,0.00011506,2]
[352306186,1739034639367,-500.0,0.00011506,2]
[352306187,1739034639376,-500.0,0.00011506,2]
[352306188,1739034639386,-500.0,0.00011506,2]
[352306189,1739034639395,-858.62,0.00011506,2]
[352306190,1739034639404,-500.0,0.00011506,2]
[352306191,1739034639414,-1238.38,0.00011506,2]
[352306192,1739034639423,-1259.84,0.00011506,2]
[352306193,1739034639432,-722.68,0.00011506,2]
[352306194,1739034639442,-500.0,0.00011506,2]
[352306195,1739034639451,-207.60939306,0.00011506,2]
[352306196,1739034639462,-515.19,0.00011506,2]
[352306197,1739034639471,-500.0,0.00011506,2]
[352306198,1739034639481,-913.25,0.00011506,2]
[352306199,1739034639490,-500.0,0.00011506,2]
[352306200,1739034639499,-151.0,0.00011506,2]
[352306201,1739034639508,-151.0,0.00011506,2]
[352306202,1739034639517,-500.0,0.00011506,2]
[352306203,1739034639526,-856.9,0.00011506,2]
[352306204,1739034639535,-1168.17,0.00011506,2]
[352306205,1739034639544,-493.60394826,0.00011506,2]
[352306206,1739034639554,-500.0,0.00011506,2]
[352306207,1739034639563,-500.0,0.00011506,2]
[352306208,1739034639573,-869.15,0.00011506,2]
[352306209,1739034639585,-504.23,0.00011506,2]
[352306210,1739034639595,-592.05,0.00011506,2]
[352306211,1739034639604,-500.0,0.00011506,2]
[352306212,1739034639615,-888.57,0.00011506,2]
[352306213,1739034639625,-500.0,0.00011506,2]
[352306214,1739034639634,-598.62,0.00011506,2]
[352306215,1739034639644,-528.78595647,0.00011506,2]
[352306216,1739034639654,-507.83,0.00011506,2]
[352306217,1739034639663,-500.0,0.00011506,2]
[352306218,1739034639673,-500.0,0.00011506,2]
[352306219,1739034639683,-500.0,0.00011506,2]
[352306220,1739034639692,-710.76,0.00011506,2]
[352306221,1739034639701,-561.36332075,0.00011506,2]
[352306222,1739034639712,-1065.0,0.00011506,2]
[352306223,1739034639721,-500.0,0.00011506,2]
[352306224,1739034639730,-500.0,0.00011506,2]
[352306225,1739034639739,-916.105408,0.00011506,2]
[352306226,1739034639749,-916.105408,0.00011506,2]
[352306228,1739034639758,-803.81,0.00011506,2]
[352306229,1739034639767,-939.89,0.00011506,2]
[352306231,1739034639776,-1433.38,0.00011506,2]
[352306232,1739034639785,-500.0,0.00011506,2]
[352306233,1739034639794,-500.0,0.00011506,2]
[352306234,1739034639804,-500.0,0.00011506,2]
[352306235,1739034639813,-151.0,0.00011506,2]
[352306236,1739034639823,-500.0,0.00011506,2]
[352306237,1739034639832,-1035.15,0.00011506,2]
[352306238,1739034639842,-990.31,0.00011506,2]
[352306239,1739034639851,-500.0,0.00011506,2]
[352306240,1739034639860,-500.0,0.00011506,2]
[352306241,1739034639870,-500.0,0.00011506,2]
[352306242,1739034639880,-870.06,0.00011506,2]
[352306243,1739034639890,-170.26089791,0.00011506,2]
[352306244,1739034639900,-3053.8,0.00011506,2]
[352306245,1739034639910,-3982.29,0.00011506,2]
[352306246,1739034639919,-564.02,0.00011506,2]
[352306247,1739034639928,-151.0,0.00011506,2]
[352306248,1739034639937,-33950.35,0.00011506,2]
[352306249,1739034639946,-1776.17,0.00011506,2]
[352306250,1739034639957,-500.0,0.00011506,2]
[352306251,1739034639966,-500.0,0.00011506,2]
[352306254,1739034639975,-1233.78,0.00011506,2]
[352306256,1739034639985,-1682.92,0.00011506,2]
[352306258,1739034639994,-500.0,0.00011506,2]
[352306260,1739034640003,-151.0,0.00011506,2]
[352306262,1739034640012,-1107.93,0.00011506,2]
[352306264,1739034640021,-151.0,0.00011506,2]
[352306266,1739034640030,-12029.08,0.00011506,2]
[352306267,1739034640039,-500.0,0.00011506,2]
[352306270,1739034640048,-1213.75,0.00011506,2]
[352306271,1739034640058,-500.0,0.00011506,2]
[352306272,1739034640067,-593.64,0.00011506,2]
[352306273,1739034640077,-500.0,0.00011506,2]
[352306274,1739034640086,-500.0,0.00011506,2]
[352306275,1739034640096,-194.351985,0.00011506,2]
[352306276,1739034640105,-500.0,0.00011506,2]
[352306277,1739034640115,-682.25,0.00011506,2]
[352306278,1739034640124,-1627.76,0.00011506,2]
[352306279,1739034640134,-194.351985,0.00011506,2]
[352306280,1739034640143,-1256.71,0.00011506,2]
[352306281,1739034640152,-500.0,0.00011506,2]
[352306282,1739034640161,-500.0,0.00011506,2]
[352306283,1739034640172,-500.0,0.00011506,2]
[352306284,1739034640181,-500.0,0.00011506,2]
[352306285,1739034640191,-500.0,0.00011506,2]
[352306287,1739034640200,-500.0,0.00011506,2]
[352306289,1739034640214,-2873.04,0.00011506,2]
[352306291,1739034640224,-500.0,0.00011506,2]
[352306293,1739034640233,-2862.19,0.00011506,2]
[352306295,1739034640242,-686.59,0.00011506,2]
[352306297,1739034640251,-500.0,0.00011506,2]
[352306299,1739034640261,-1356.61,0.00011506,2]
[352306301,1739034640270,-1256.55,0.00011506,2]
[352306303,1739034640279,-500.0,0.00011506,2]
[352306305,1739034640288,-6866.45,0.00011506,2]
[352306307,1739034640298,-525.05,0.00011506,2]
[352306309,1739034640307,-500.0,0.00011506,2]
[352306311,1739034640315,-612.02,0.00011506,2]
[352306313,1739034640325,-1134.34,0.00011506,2]
[352306315,1739034640334,-500.0,0.00011506,2]
[352306317,1739034640344,-2741.74,0.00011506,2]
[352306319,1739034640353,-500.0,0.00011506,2]
[352306321,1739034640362,-713.56,0.00011506,2]
[352306322,1739034640372,-683.69,0.00011506,2]
[352306324,1739034640381,-500.0,0.00011506,2]
[352306326,1739034640390,-522.5,0.00011506,2]
[352306328,1739034640399,-500.0,0.00011506,2]
[352306329,1739034640409,-3172.66,0.00011506,2]
[352306331,1739034640418,-837.9,0.00011506,2]
[352306333,1739034640427,-1286.87,0.00011506,2]
[352306335,1739034640437,-1418.94,0.00011506,2]
[352306337,1739034640447,-3358.18,0.00011506,2]
[352306339,1739034640457,-151.0,0.00011506,2]
[352306341,1739034640467,-2203.65,0.00011506,2]
[352306343,1739034640476,-500.0,0.00011506,2]
[352306345,1739034640485,-773.52,0.00011506,2]
[352306347,1739034640495,-4370.11,0.00011506,2]
[352306350,1739034640505,-13047.28,0.00011506,2]
[352306351,1739034640514,-151.0,0.000116,2]
[352306354,1739034640524,-151.0,0.000116,2]
[352306356,1739034640534,-151.0,0.000116,2]
[352306358,1739034640543,-271.10270288,0.000116,2]
[352306360,1739034640553,-151.0,0.000116,2]
[352306362,1739034640563,-500.0,0.000116,2]
[352306364,1739034640573,-500.0,0.000116,2]
[352306366,1739034640585,-500.0,0.00011626,2]
[352306368,1739034640595,-500.0,0.00011643,2]
[352306370,1739034640605,-557.64,0.00011643,2]
[352306372,1739034640615,-500.0,0.00011643,2]
[352306374,1739034640625,-151.0,0.00011643,2]
[352306376,1739034640636,-500.0,0.00011643,2]
[352306378,1739034640646,-500.0,0.00011643,2]
[352306380,1739034640657,-640.419,0.00011643,2]
[352306382,1739034640668,-156.87499977,0.00011643,2]
[352306384,1739034640677,-500.0,0.00011643,2]
[352306385,1739034640687,-1155.237172,0.00011643,2]
[352306388,1739034640698,-1155.237172,0.00011643,2]
[352306389,1739034640712,-151.0,0.00011643,2]
[352306392,1739034640722,-151.0,0.00011643,2]
[352306393,1739034640732,-500.0,0.00011643,2]
[352306395,1739034640745,-500.0,0.00011643,2]
[352306397,1739034640755,-858.62,0.00011643,2]
[352306399,1739034640764,-500.0,0.00011643,2]
[352306401,1739034640774,-1238.38,0.00011643,2]
[352306403,1739034640783,-1259.84,0.00011643,2]
[352306406,1739034640793,-722.68,0.00011643,2]
[352306408,1739034640803,-217.639125,0.00011643,2]
[352306410,1739034640812,-217.639125,0.00011643,2]
[352306412,1739034640821,-500.0,0.00011643,2]
[352306414,1739034640831,-515.19,0.00011643,2]
[352306416,1739034640840,-500.0,0.00011643,2]
[352306418,1739034640849,-913.25,0.00011643,2]
[352306420,1739034640859,-500.0,0.00011643,2]
[352306421,1739034640868,-500.0,0.00011643,2]
[352306424,1739034640877,-856.9,0.00011643,2]
[352306426,1739034640887,-1168.17,0.00011643,2]
[352306428,1739034640896,-500.0,0.00011643,2]
[352306430,1739034640905,-151.0,0.00011643,2]
[352306432,1739034640914,-500.0,0.00011643,2]
[352306434,1739034640924,-869.15,0.00011643,2]
[352306436,1739034640934,-200.27901,0.00011643,2]
[352306438,1739034640944,-504.23,0.00011643,2]
[352306440,1739034640954,-200.27901,0.00011643,2]
[352306442,1739034640964,-221.317678,0.00011643,2]
[352306444,1739034640973,-221.317678,0.00011643,2]
[352306446,1739034640983,-592.05,0.00011643,2]
[352306448,1739034640992,-500.0,0.00011643,2]
[352306450,1739034641002,-888.57,0.00011643,2]
[352306452,1739034641011,-500.0,0.00011643,2]
[352306454,1739034641021,-460.508455,0.00011643,2]
[352306456,1739034641030,-598.62,0.00011643,2]
[352306458,1739034641040,-460.508455,0.00011643,2]
[352306460,1739034641049,-507.83,0.00011643,2]
[352306462,1739034641060,-500.0,0.00011643,2]
[352306464,1739034641069,-563.561481,0.00011643,2]
[352306466,1739034641078,-500.0,0.00011643,2]
[352306468,1739034641087,-563.561481,0.00011643,2]
[352306470,1739034641097,-189.234177,0.00011643,2]
[352306472,1739034641106,-189.234177,0.00011643,2]
[352306474,1739034641115,-500.0,0.00011643,2]
[352306476,1739034641124,-710.76,0.00011643,2]
[352306477,1739034641133,-1065.0,0.00011643,2]
[352306478,1739034641142,-151.0,0.00011643,2]
[352306479,1739034641152,-500.0,0.00011643,2]
[352306480,1739034641161,-803.81,0.00011643,2]
[352306481,1739034641170,-939.89,0.00011643,2]
[352306482,1739034641179,-1433.38,0.00011643,2]
[352306483,1739034641188,-500.0,0.00011643,2]
[352306484,1739034641197,-500.0,0.00011643,2]
[352306485,1739034641206,-232.225184,0.00011643,2]
[352306486,1739034641215,-232.225184,0.00011643,2]
[352306487,1739034641224,-500.0,0.00011643,2]
[352306488,1739034641233,-1035.15,0.00011643,2]
[352306489,1739034641242,-990.31,0.00011643,2]
[352306490,1739034641251,-500.0,0.00011643,2]
[352306491,1739034641260,-352.12296156,0.00011643,2]
[352306492,1739034641270,-870.06,0.00011643,2]
[352306493,1739034641279,-3053.8,0.00011643,2]
[352306494,1739034641289,-3982.29,0.00011643,2]
[352306495,1739034641299,-564.02,0.00011643,2]
[352306496,1739034641309,-151.0,0.00011643,2]
[352306497,1739034641318,-33950.35,0.00011643,2]
[352306498,1739034641328,-1776.17,0.00011643,2]
[352306499,1739034641337,-500.0,0.00011643,2]
[352306500,1739034641347,-500.0,0.00011643,2]
[352306501,1739034641356,-1233.78,0.00011643,2]
[352306502,1739034641367,-1682.92,0.00011643,2]
[352306503,1739034641378,-500.0,0.00011643,2]
[352306504,1739034641388,-151.0,0.00011643,2]
[352306505,1739034641399,-1107.93,0.00011643,2]
[352306506,1739034641409,-12029.08,0.00011643,2]
[352306507,1739034641419,-1213.75,0.00011643,2]
[352306508,1739034641429,-500.0,0.00011643,2]
[352306509,1739034641439,-593.64,0.00011643,2]
[352306510,1739034641450,-500.0,0.00011643,2]
[352306511,1739034641459,-500.0,0.00011643,2]
[352306512,1739034641469,-194.351985,0.00011643,2]
[352306513,1739034641478,-500.0,0.00011643,2]
[352306514,1739034641487,-682.25,0.00011643,2]
[352306515,1739034641497,-1627.76,0.00011643,2]
[352306516,1739034641506,-194.351985,0.00011643,2]
[352306517,1739034641515,-1256.71,0.00011643,2]
[352306518,1739034641525,-500.0,0.00011643,2]
[352306519,1739034641534,-500.0,0.00011643,2]
[352306520,1739034641543,-500.0,0.00011643,2]
[352306521,1739034641553,-500.0,0.00011643,2]
[352306522,1739034641562,-500.0,0.00011643,2]
[352306523,1739034641572,-2873.04,0.00011643,2]
[352306524,1739034641586,-500.0,0.00011643,2]
[352306525,1739034641600,-2862.19,0.00011643,2]
[352306526,1739034641609,-686.59,0.00011643,2]
[352306527,1739034641619,-500.0,0.00011643,2]
[352306528,1739034641630,-1356.61,0.00011643,2]
[352306529,1739034641639,-1256.55,0.00011643,2]
[352306530,1739034641649,-500.0,0.00011643,2]
[352306531,1739034641659,-6866.45,0.00011643,2]
[352306532,1739034641669,-525.05,0.00011643,2]
[352306533,1739034641679,-500.0,0.00011643,2]
[352306534,1739034641694,-612.02,0.00011643,2]
[352306535,1739034641703,-1134.34,0.00011643,2]
[352306536,1739034641714,-500.0,0.00011643,2]
[352306537,1739034641723,-2741.74,0.00011643,2]
[352306538,1739034641733,-500.0,0.00011643,2]
[352306539,1739034641743,-713.56,0.00011643,2]
[352306540,1739034641752,-683.69,0.00011643,2]
[352306541,1739034641761,-500.0,0.00011643,2]
[352306542,1739034641771,-522.5,0.00011643,2]
[352306543,1739034641780,-500.0,0.00011643,2]
[352306544,1739034641790,-3172.66,0.00011643,2]
[352306545,1739034641799,-225.31729145,0.00011643,2]
[352306546,1739034642486,-301.79,0.00010958,2]
[352306547,1739034642531,-198.21,0.00010958,2]
[352306548,1739034642542,-220.19564891,0.00010995,2]
[352306549,1739034642551,-500.0,0.00011095,2]
[352306550,1739034642561,-561.12,0.00011232,2]
[352306551,1739034642571,-500.0,0.00011232,2]
[352306552,1739034642582,-561.12,0.00011369,2]
[352306553,1739034642595,-500.0,0.00011369,2]
[352306554,1739034642605,-561.12,0.00011506,2]
[352306555,1739034642614,-500.0,0.00011506,2]
[352306556,1739034642624,-612.58270855,0.00011643,2]
[352306557,1739034642640,-1286.87,0.00011643,2]
[352306558,1739034642651,-1418.94,0.00011643,2]
[352306559,1739034642662,-3358.18,0.00011643,2]
[352306560,1739034642672,-151.0,0.00011643,2]
[352306561,1739034642682,-2203.65,0.00011643,2]
[352306562,1739034642691,-270.48935706,0.00011643,2]
[352306563,1739034642700,-773.52,0.00011643,2]
[352306564,1739034642710,-4370.11,0.00011643,2]
[352306565,1739034642719,-13047.28,0.00011643,2]
[352306566,1739034642728,-561.12,0.00011643,2]
[352306567,1739034642738,-13265.39216455,0.00011666,2]
[352306568,1739034642747,-151.0,0.000117,2]
[352306569,1739034642756,-151.0,0.000117,2]
[352306571,1739034642765,-151.0,0.00011738,2]
[352306573,1739034642774,-916.105408,0.00011738,2]
[352306574,1739034642784,-916.105408,0.00011738,2]
[352306576,1739034642793,-250.0,0.00011739,2]
[352306578,1739034642802,-231.214,0.00011739,2]
[352306579,1739034642812,-153.049,0.00011739,2]
[352306580,1739034642821,-150.0,0.00011739,2]
[352306581,1739034642830,-1975.0,0.00011739,2]
[352306582,1739034642839,-537.0,0.00011739,2]
[352306583,1739034642848,-2296.0,0.00011739,2]
[352306584,1739034642858,-396.0,0.00011739,2]
[352306585,1739034642868,-308.255241,0.00011779,2]
[352306587,1739034642878,-308.255241,0.00011779,2]
[352306589,1739034642887,-151.0,0.00011779,2]
[352306591,1739034642896,-151.0,0.00011779,2]
[352306592,1739034642906,-189407.27773519,0.00011779,5]
[352306593,1739034642916,-19205.09187323,0.0001178,5]
[352306594,1739034642926,-151.0,0.0001178,2]
[352306596,1739034642936,-151.0,0.0001178,2]
[352306597,1739034642946,-151.0,0.0001178,2]
[352306598,1739034642956,-308.255241,0.0001178,2]
[352306600,1739034642966,-308.255241,0.0001178,2]
[352306602,1739034642975,-207.774874,0.0001178,2]
[352306604,1739034642984,-151.0,0.0001178,2]
[352306605,1739034642993,-207.774874,0.0001178,2]
[352306607,1739034643002,-151.0,0.0001178,2]
[352306610,1739034643012,-630.916666,0.0001178,2]
[352306611,1739034643022,-630.916666,0.0001178,2]
[352306613,1739034643031,-151.0,0.0001178,2]
[352306615,1739034643041,-151.0,0.0001178,2]
[352306617,1739034643052,-500.0,0.0001178,2]
[352306619,1739034643061,-557.64,0.0001178,2]
[352306621,1739034643070,-316.86012232,0.0001178,2]
[352306623,1739034643080,-216.037757,0.0001178,2]
[352306626,1739034643090,-216.037757,0.0001178,2]
[352306628,1739034643100,-500.0,0.0001178,2]
[352306629,1739034643110,-151.0,0.0001178,2]
[352306631,1739034643119,-151.0,0.0001178,2]
[352306632,1739034643129,-500.0,0.0001178,2]
[352306633,1739034643138,-500.0,0.0001178,2]
[352306634,1739034643147,-500.0,0.0001178,2]
[352306635,1739034643156,-858.62,0.0001178,2]
[352306636,1739034643165,-1238.38,0.0001178,2]
[352306637,1739034643175,-1259.84,0.0001178,2]
[352306638,1739034643184,-722.68,0.0001178,2]
[352306639,1739034643194,-500.0,0.0001178,2]
[352306640,1739034643203,-515.19,0.0001178,2]
[352306641,1739034643214,-500.0,0.0001178,2]
[352306642,1739034643223,-913.25,0.0001178,2]
[352306643,1739034643233,-500.0,0.0001178,2]
[352306644,1739034643242,-856.9,0.0001178,2]
[352306645,1739034643251,-1168.17,0.0001178,2]
[352306646,1739034643261,-500.0,0.0001178,2]
[352306647,1739034643270,-151.0,0.0001178,2]
[352306648,1739034643280,-500.0,0.0001178,2]
[352306649,1739034643289,-869.15,0.0001178,2]
[352306650,1739034643299,-200.27901,0.0001178,2]
[352306651,1739034643308,-504.23,0.0001178,2]
[352306652,1739034643317,-200.27901,0.0001178,2]
[352306653,1739034643327,-221.317678,0.0001178,2]
[352306654,1739034643337,-221.317678,0.0001178,2]
[352306655,1739034643346,-592.05,0.0001178,2]
[352306656,1739034643355,-462.37079878,0.0001178,2]
[352306657,1739034643365,-888.57,0.0001178,2]
[352306658,1739034643374,-500.0,0.0001178,2]
[352306659,1739034643383,-598.62,0.0001178,2]
[352306660,1739034643393,-507.83,0.0001178,2]
[352306661,1739034643402,-500.0,0.0001178,2]
[352306662,1739034643412,-563.561481,0.0001178,2]
[352306663,1739034643422,-563.561481,0.0001178,2]
[352306664,1739034643431,-500.0,0.0001178,2]
[352306665,1739034643441,-710.76,0.0001178,2]
[352306666,1739034643451,-1065.0,0.0001178,2]
[352306667,1739034643461,-500.0,0.0001178,2]
[352306668,1739034643471,-803.81,0.0001178,2]
[352306669,1739034643480,-939.89,0.0001178,2]
[352306670,1739034643490,-500.0,0.0001178,2]
[352306671,1739034643500,-500.0,0.0001178,2]
[352306672,1739034643509,-188.19660481,0.0001178,2]
[352306673,1739034643519,-1035.15,0.0001178,2]
[352306674,1739034643529,-990.31,0.0001178,2]
[352306675,1739034643539,-500.0,0.0001178,2]
[352306676,1739034643548,-870.06,0.0001178,2]
[352306677,1739034643558,-3053.8,0.0001178,2]
[352306678,1739034643567,-3982.29,0.0001178,2]
[352306679,1739034643576,-564.02,0.0001178,2]
[352306680,1739034643588,-151.0,0.0001178,2]
[352306681,1739034643597,-33950.35,0.0001178,2]
[352306682,1739034643606,-1776.17,0.0001178,2]
[352306683,1739034643615,-388.6,0.0001178,2]
[352306684,1739034643626,-500.0,0.0001178,2]
[352306685,1739034643635,-1233.78,0.0001178,2]
[352306686,1739034643644,-1682.92,0.0001178,2]
[352306687,1739034643653,-500.0,0.0001178,2]
[352306688,1739034643665,-151.0,0.0001178,2]
[352306689,1739034643678,-1107.93,0.0001178,2]
[352306690,1739034643688,-12029.08,0.0001178,2]
[352306691,1739034643697,-1213.75,0.0001178,2]
[352306692,1739034643708,-500.0,0.0001178,2]
[352306693,1739034643718,-593.64,0.0001178,2]
[352306694,1739034643727,-500.0,0.0001178,2]
[352306695,1739034643737,-500.0,0.0001178,2]
[352306696,1739034643747,-194.351985,0.0001178,2]
[352306697,1739034643758,-500.0,0.0001178,2]
[352306698,1739034643769,-682.25,0.0001178,2]
[352306699,1739034643779,-1627.76,0.0001178,2]
[352306700,1739034643789,-194.351985,0.0001178,2]
[352306701,1739034643798,-1256.71,0.0001178,2]
[352306702,1739034643807,-500.0,0.0001178,2]
[352306703,1739034643817,-500.0,0.0001178,2]
[352306704,1739034643827,-500.0,0.0001178,2]
[352306705,1739034643836,-500.0,0.0001178,2]
[352306706,1739034643846,-2873.04,0.0001178,2]
[352306707,1739034643855,-500.0,0.0001178,2]
[352306708,1739034643865,-2862.19,0.0001178,2]
[352306710,1739034643874,-686.59,0.0001178,2]
[352306712,1739034643884,-500.0,0.0001178,2]
[352306714,1739034643893,-1356.61,0.0001178,2]
[352306716,1739034643904,-1256.55,0.0001178,2]
[352306718,1739034643915,-500.0,0.0001178,2]
[352306720,1739034643925,-6866.45,0.0001178,2]
[352306722,1739034643934,-525.05,0.0001178,2]
[352306724,1739034643944,-178.22823847,0.0001178,2]
[352306726,1739034643953,-612.02,0.0001178,2]
[352306728,1739034643965,-1134.34,0.0001178,2]
[352306730,1739034643976,-500.0,0.0001178,2]
[352306732,1739034643985,-2741.74,0.0001178,2]
[352306734,1739034643995,-713.56,0.0001178,2]
[352306736,1739034644005,-500.0,0.0001178,2]
[352306738,1739034644015,-683.69,0.0001178,2]
[352306740,1739034644024,-500.0,0.0001178,2]
[352306742,1739034644034,-522.5,0.0001178,2]
[352306744,1739034644043,-500.0,0.0001178,2]
[352306746,1739034644053,-3172.66,0.0001178,2]
[352306748,1739034644062,-837.9,0.0001178,2]
[352306750,1739034644074,-1286.87,0.0001178,2]
[352306752,1739034644083,-1418.94,0.0001178,2]
[352306754,1739034644093,-3358.18,0.0001178,2]
[352306756,1739034644103,-151.0,0.0001178,2]
[352306758,1739034644112,-2203.65,0.0001178,2]
[352306760,1739034644121,-773.52,0.0001178,2]
[352306762,1739034644132,-4370.11,0.0001178,2]
[352306764,1739034644141,-561.12,0.0001178,2]
[352306766,1739034644151,-13047.28,0.0001178,2]
[352306768,1739034644160,-5453.19682922,0.000118,2]
[352306770,1739034644170,-151.0,0.000118,2]
[352306772,1739034644179,-151.0,0.000118,2]
[352306774,1739034644190,-1000.0,0.00011874,2]
[352306776,1739034644200,-151.0,0.00011916,2]
[352306778,1739034644210,-151.0,0.00011916,2]
[352306780,1739034644219,-194.351985,0.00011916,2]
[352306782,1739034644229,-194.351985,0.00011916,2]
[352306785,1739034644238,-151.0,0.00011916,2]
[352306787,1739034644248,-151.0,0.00011917,2]
[352306789,1739034644258,-308.255241,0.00011917,2]
[352306791,1739034644267,-308.255241,0.00011917,2]
[352306792,1739034644276,-207.774874,0.00011917,2]
[352306793,1739034644286,-151.0,0.00011917,2]
[352306796,1739034644295,-207.774874,0.00011917,2]
[352306798,1739034644305,-151.0,0.00011917,2]
[352306800,1739034644314,-630.916666,0.00011917,2]
[352306802,1739034644323,-630.916666,0.00011917,2]
[352306803,1739034644333,-151.0,0.00011917,2]
[352306804,1739034644342,-151.0,0.00011917,2]
[352306805,1739034644351,-500.0,0.00011917,2]
[352306806,1739034644360,-557.64,0.00011917,2]
[352306807,1739034644370,-151.0,0.00011917,2]
[352306808,1739034644379,-500.0,0.00011917,2]
[352306809,1739034644389,-1155.237172,0.00011917,2]
[352306810,1739034644400,-500.0,0.00011917,2]
[352306811,1739034644409,-1155.237172,0.00011917,2]
[352306812,1739034644418,-151.0,0.00011917,2]
[352306813,1739034644427,-151.0,0.00011917,2]
[352306814,1739034644437,-500.0,0.00011917,2]
[352306815,1739034644446,-500.0,0.00011917,2]
[352306816,1739034644455,-858.62,0.00011917,2]
[352306817,1739034644465,-1238.38,0.00011917,2]
[352306818,1739034644474,-1259.84,0.00011917,2]
[352306819,1739034644484,-722.68,0.00011917,2]
[352306820,1739034644493,-217.639125,0.00011917,2]
[352306821,1739034644504,-217.639125,0.00011917,2]
[352306822,1739034644514,-500.0,0.00011917,2]
[352306823,1739034644525,-515.19,0.00011917,2]
[352306824,1739034644536,-500.0,0.00011917,2]
[352306825,1739034644546,-913.25,0.00011917,2]
[352306826,1739034644555,-151.0,0.00011917,2]
[352306827,1739034644565,-500.0,0.00011917,2]
[352306828,1739034644574,-856.9,0.00011917,2]
[352306829,1739034644584,-1168.17,0.00011917,2]
[352306830,1739034644596,-500.0,0.00011917,2]
[352306831,1739034644605,-151.0,0.00011917,2]